bitfinex/quotes_ETHUSD_20241109
["timestamp","ask_amount","ask_price","bid_price","bid_amount"]
[1731196365250,0.555,3125.1,3125.0,3.0]
[1731196365754,0.555,3125.1,3124.6,0.63074009]
[1731196365941,0.555,3125.1,3123.9,0.8215]
[1731196366141,0.555,3125.1,3124.4,0.8292]
[1731196366446,1.11,3125.1,3124.0,0.63221109]
[1731196366632,1.11,3125.1,3124.1,0.05874936]
[1731196366942,1.11,3125.1,3124.5,3.0]
[1731196367108,1.11,3125.1,3124.6,0.05874958]
[1731196367506,1.11,3125.1,3124.1,0.05874465]
[1731196367758,1.11,3125.1,3124.0,0.63221109]
[1731196368052,1.11,3125.1,3124.1,0.55]
[1731196368304,0.08000339,3126.4,3124.1,0.55]
[1731196368305,0.8292,3126.2,3124.4,0.8215]
[1731196368458,0.8292,3126.2,3124.5,0.55]
[1731196369054,0.8292,3126.2,3125.0,0.64442681]
[1731196369249,0.8392,3126.2,3125.0,0.64442681]
[1731196369451,0.8292,3126.2,3125.0,0.64442681]
[1731196369625,0.8292,3126.2,3125.7,3.0]
[1731196369813,0.8292,3126.2,3125.8,0.05868016]
[1731196370012,0.8292,3126.2,3125.0,0.64442681]
[1731196370013,0.8392,3126.2,3125.1,0.05868016]
[1731196370258,0.54425057,3126.1,3125.0,0.64442681]
[1731196370548,0.01,3126.0,3125.0,0.64442681]
[1731196370921,0.01,3125.8,3124.0,0.33849798]
[1731196371125,1.99557844,3125.9,3123.9,4.6507]
[1731196371126,1.99549613,3125.7,3123.9,1.6507]
[1731196371312,0.63502159,3125.8,3123.9,1.98919798]
[1731196371512,1.99546169,3125.7,3124.0,0.39720477]
[1731196371845,0.63502159,3126.1,3124.8,0.8215]
[1731196372081,1.3842,3126.2,3124.9,0.46241464]
[1731196372642,1.9392,3126.2,3124.9,0.46241464]
[1731196373183,1.11,3126.2,3125.0,0.05866858]
[1731196373348,1.11,3126.2,3125.0,0.46241464]
[1731196374059,1.11,3126.2,3125.2,0.64276078]
[1731196374673,1.665,3126.2,3125.3,0.05867908]
[1731196374973,1.665,3126.2,3125.2,0.64276078]
[1731196375155,1.665,3126.2,3125.3,0.05867504]
[1731196375355,1.665,3126.2,3125.2,0.64276078]
[1731196376673,2.22,3126.2,3125.2,0.64276078]
[1731196377150,0.01,3126.1,3124.8,0.11185015]
[1731196377344,0.01,3125.8,3124.3,0.7944]
[1731196377544,0.01,3125.8,3124.4,0.77799243]
[1731196378083,0.01,3125.8,3124.8,0.64027976]
[1731196378084,0.7837,3125.7,3124.8,0.64027976]
[1731196378318,0.7937,3125.7,3124.9,0.0587057]
[1731196378475,0.66943381,3126.1,3124.4,0.43283575]
[1731196378685,0.555,3125.7,3124.6,0.62365742]
[1731196380452,0.555,3125.7,3124.7,0.05870131]
[1731196381000,1.11,3125.7,3124.6,0.62365742]
[1731196381355,1.10360246,3125.7,3124.6,0.62365742]
[1731196381567,1.10360246,3125.7,3124.6,1.05649317]
[1731196381758,1.10360246,3125.7,3125.5,3.0]
[1731196381956,2.22,3126.2,3125.3,0.43283575]
[1731196382161,0.01,3126.0,3124.9,0.43283575]
[1731196382395,0.01,3126.0,3125.0,0.05868147]
[1731196382648,0.01,3125.8,3125.6,3.0]
[1731196382884,0.01,3125.8,3125.1,0.63951963]
[1731196382885,0.565,3125.8,3125.1,0.63951963]
[1731196383108,0.01,3125.2,3124.7,0.10943107]
[1731196383304,0.01,3125.0,3124.7,0.10943107]
[1731196383531,0.01,3125.0,3124.1,0.64233324]
[1731196383891,0.01,3125.5,3124.2,0.40509658]
[1731196384112,0.01,3125.5,3124.3,0.05870746]
[1731196384285,0.01,3125.7,3124.3,0.46380404]
[1731196384482,1.3387,3125.8,3124.4,1.19949658]
[1731196384782,1.3487,3125.8,3124.5,0.05869946]
[1731196384998,1.8937,3125.8,3124.6,0.40509658]
[1731196385215,1.8937,3125.8,3125.1,0.63670603]
[1731196385428,0.01,3125.7,3124.6,0.40509658]
[1731196385731,0.01,3125.5,3124.9,3.0]
[1731196386027,1.9037,3125.8,3124.0,0.72369658]
[1731196386028,0.01,3125.2,3124.1,0.1084465]
[1731196386183,0.01,3125.2,3124.0,0.40509658]
[1731196386383,0.01,3125.4,3124.2,0.64808834]
[1731196386627,0.01,3125.2,3124.2,0.64808834]
[1731196386986,0.02,3125.2,3124.3,0.29814703]
[1731196387210,0.01,3125.0,3123.9,0.8292]
[1731196387408,0.565,3125.2,3123.9,0.8292]
[1731196387409,0.01,3124.8,3124.0,0.29818227]
[1731196387609,0.01,3124.8,3124.1,0.29818227]
[1731196387848,0.01,3124.8,3124.2,0.29818227]
[1731196388148,0.01,3124.8,3124.3,0.29818227]
[1731196388304,0.01,3124.8,3124.4,0.35694451]
[1731196388505,0.01,3124.8,3124.5,0.29818227]
[1731196388718,0.01,3124.8,3124.6,0.05875529]
[1731196388932,0.01,3124.8,3124.5,0.29818227]
[1731196389137,0.565,3124.8,3124.5,0.29818227]
[1731196389335,0.01,3124.6,3124.5,0.29818227]
[1731196389811,0.01,3124.4,3123.8,0.63760126]
[1731196390009,0.01,3124.1,3123.8,0.63760126]
[1731196390527,0.01,3124.1,3123.4,0.555]
[1731196391209,0.01,3124.7,3123.5,0.0587956]
[1731196391422,0.555,3124.1,3123.5,0.0587956]
[1731196391624,0.555,3124.1,3123.7,3.0]
[1731196391808,0.555,3124.1,3123.8,0.05877902]
[1731196392213,0.555,3124.1,3123.4,1.20583913]
[1731196392646,0.555,3124.1,3123.5,0.05878032]
[1731196393153,0.555,3124.1,3123.5,0.05878305]
[1731196393328,0.555,3124.1,3123.6,0.35913645]
[1731196393526,1.11,3124.1,3123.6,0.35913645]
[1731196394043,0.01,3124.7,3123.7,0.05878687]
[1731196394217,0.01,3124.7,3123.7,0.35722283]
[1731196394409,0.565,3124.8,3123.7,0.05876221]
[1731196395117,0.555,3124.8,3123.8,0.35913645]
[1731196395424,0.555,3124.8,3123.9,0.35716839]
[1731196395632,1.11,3124.8,3123.9,0.05875307]
[1731196395825,1.11,3124.8,3123.4,1.31675244]
[1731196396166,1.11,3124.8,3123.5,3.90913645]
[1731196396314,1.11,3124.8,3123.5,3.35913645]
[1731196396630,0.01,3124.6,3123.4,0.66591331]
[1731196396830,0.01,3124.6,3124.2,3.0]
[1731196397151,0.01,3124.6,3124.3,0.05876424]
[1731196397331,0.01,3124.6,3123.4,1.02504976]
[1731196397332,0.01,3124.6,3124.2,3.0]
[1731196397537,0.01,3124.6,3124.3,0.05876598]
[1731196397855,0.565,3124.6,3124.3,0.05876598]
[1731196398230,0.565,3124.6,3124.0,0.05876738]
[1731196400020,1.12,3124.6,3123.9,0.63838088]
[1731196400364,0.01,3124.4,3123.4,0.66591331]
[1731196400529,0.8289,3124.3,3123.9,3.0]
[1731196401172,0.8289,3124.3,3123.4,0.66591331]
[1731196401453,0.8289,3124.3,3123.8,0.6315096]
[1731196401661,0.8289,3124.3,3123.9,3.0]
[1731196402233,1.3839,3124.3,3123.9,3.0]
[1731196402525,1.3839,3124.3,3123.8,0.6315096]
[1731196403540,1.3839,3124.3,3123.9,3.0]
[1731196404264,1.3839,3124.3,3123.8,0.6315096]
[1731196404459,1.9389,3124.3,3123.8,0.6315096]
[1731196406866,2.4939,3124.3,3123.8,0.6315096]
[1731196407965,2.4939,3124.3,3123.9,0.05878807]
[1731196408528,2.4939,3124.3,3124.1,3.0]
[1731196408967,3.0489,3124.3,3123.8,0.6315096]
[1731196410041,2.22,3124.3,3123.8,0.6315096]
[1731196410379,0.28030001,3124.6,3123.9,0.41792115]
[1731196411280,0.83530001,3124.6,3123.9,0.41792115]
[1731196412356,0.27469999,3124.8,3123.9,0.41792115]
[1731196412559,1.3839,3125.2,3124.0,0.55]
[1731196412742,1.3839,3125.2,3125.1,3.0]
[1731196412948,0.555,3125.2,3124.1,0.4178553]
[1731196413148,0.555,3125.2,3124.4,0.55]
[1731196413420,1.11,3125.2,3124.5,0.05871113]
[1731196413682,0.8489,3126.1,3125.5,3.0]
[1731196413984,0.8289,3126.1,3125.6,0.05869122]
[1731196414142,0.01,3126.5,3126.0,3.0]
[1731196414346,0.01,3126.5,3126.1,0.05866979]
[1731196414658,0.01,3126.5,3125.7,0.0586658]
[1731196414982,0.8097,3126.6,3125.7,0.0586658]
[1731196415284,0.8097,3126.6,3125.6,0.64890829]
[1731196415491,2.775,3126.2,3125.6,0.64890829]
[1731196416363,0.01,3127.0,3125.7,0.05865593]
[1731196416583,0.01,3127.0,3126.5,3.0]
[1731196416879,0.01,3127.0,3125.7,0.05865593]
[1731196416880,0.01,3127.0,3126.1,0.63988946]
[1731196417469,0.565,3127.0,3126.1,0.63988946]
[1731196417668,0.01,3126.2,3125.3,0.11118776]
[1731196417902,0.01,3126.2,3124.8,0.7968]
[1731196418106,0.01,3126.2,3125.8,0.63871604]
[1731196418278,0.01,3126.0,3125.8,0.63871604]
[1731196418599,0.01,3126.0,3124.8,0.7968]
[1731196418600,0.01,3126.0,3125.7,0.63711813]
[1731196418806,0.01,3126.0,3124.8,0.90692191]
[1731196419007,0.01,3126.0,3125.6,0.64523551]
[1731196419503,0.01,3125.8,3125.6,0.64523551]
[1731196419659,0.01,3125.6,3124.8,0.11012191]
[1731196419857,0.01,3125.2,3125.0,0.64696125]
[1731196420096,0.01,3125.7,3125.1,0.05872437]
[1731196420699,0.01,3125.5,3125.0,0.64696125]
[1731196420931,0.01,3125.7,3125.1,0.05871026]
[1731196421269,0.01,3125.9,3125.5,3.0]
[1731196421494,0.01,3125.9,3125.6,0.05869236]
[1731196421701,0.01,3125.9,3125.5,3.0]
[1731196421965,0.01,3125.3,3125.0,0.64696125]
[1731196422249,0.01,3124.9,3124.0,0.38496979]
[1731196422585,0.8097,3125.2,3123.6,0.33124217]
[1731196422586,0.01,3124.7,3124.5,0.62816984]
[1731196422920,0.01,3124.5,3123.6,0.33124217]
[1731196423108,0.01,3123.7,3123.6,0.33124217]
[1731196423318,0.01,3123.7,3123.4,0.66300992]
[1731196423319,0.8197,3124.0,3123.4,0.555]
[1731196423486,0.8197,3124.0,3123.5,0.05880786]
[1731196423681,0.8197,3124.0,3123.4,0.555]
[1731196423878,1.3747,3124.0,3123.4,0.555]
[1731196424127,1.3747,3124.0,3123.5,0.0588091]
[1731196424817,1.3647,3124.0,3123.5,0.0588091]
[1731196425280,1.3747,3124.0,3123.5,0.0588091]
[1731196426181,1.9297,3124.0,3123.8,3.0]
[1731196426383,1.11,3124.0,3123.9,0.058809]
[1731196426723,1.11,3124.0,3123.9,3.0]
[1731196427225,1.11,3124.0,3123.9,3.05878982]
[1731196427395,1.11,3124.0,3123.9,3.0]
[1731196427721,1.11,3124.0,3123.9,0.11340995]
[1731196428022,1.11,3124.0,3123.7,0.64793517]
[1731196428207,1.665,3124.0,3123.7,0.64793517]
[1731196429045,0.8097,3123.9,3123.7,3.64793517]
[1731196429331,0.8097,3123.9,3123.4,0.555]
[1731196429483,0.8097,3123.9,3123.7,3.0]
[1731196429823,1.665,3124.0,3123.8,0.05881339]
[1731196430420,2.22,3124.0,3123.4,1.19410579]
[1731196432519,2.775,3124.0,3123.4,1.19410579]
[1731196432691,2.775,3124.0,3123.7,3.0]
[1731196433102,2.775,3124.0,3123.4,1.19410579]
[1731196434619,3.33,3124.0,3123.4,1.19410579]
[1731196435086,3.33,3124.0,3123.5,0.55]
[1731196435288,3.33,3124.0,3123.4,1.19410579]
[1731196435723,3.33,3124.0,3123.4,0.555]
[1731196436708,3.885,3124.0,3123.4,0.555]
[1731196437723,3.885,3124.0,3123.5,0.05879724]
[1731196438240,2.88560817,3124.0,3123.9,0.62722872]
[1731196438742,1.20462588,3124.0,3123.9,0.62722872]
[1731196439853,0.01,3125.0,3124.4,3.0]
[1731196440319,0.01,3125.0,3123.9,0.7744]
[1731196440525,0.02,3125.0,3124.6,3.0]
[1731196441007,0.575,3125.0,3123.9,0.7744]
[1731196441411,0.565,3125.0,3124.7,0.63963975]
[1731196441647,0.575,3125.0,3124.7,0.63963975]
[1731196442346,0.555,3125.0,3124.8,0.05874145]
[1731196442561,0.575,3125.9,3124.8,1.17816089]
[1731196442707,0.565,3125.9,3125.5,3.0]
[1731196442912,0.565,3125.9,3124.8,1.17816089]
[1731196443251,1.12,3125.9,3124.8,1.17816089]
[1731196444265,1.12,3125.9,3125.8,0.62505596]
[1731196444575,0.3942608,3126.0,3125.8,1.02881685]
[1731196444727,0.3942608,3126.0,3125.8,0.62505596]
[1731196445127,0.9492608,3126.0,3125.8,0.62505596]
[1731196447130,1.5042608,3126.0,3125.8,0.62505596]
[1731196449474,2.0592608,3126.0,3125.8,0.62505596]
[1731196450578,0.01,3125.4,3124.4,0.778]
[1731196450780,0.01,3125.1,3124.2,0.33051557]
[1731196450997,0.01,3124.9,3124.2,0.33051557]
[1731196451209,0.01,3124.9,3124.5,1.279499]
[1731196451706,0.565,3124.9,3124.5,1.68325989]
[1731196451905,0.01,3124.7,3124.5,2.33833322]
[1731196452110,0.01,3124.7,3124.5,1.279499]
[1731196452404,0.01,3124.6,3124.5,1.279499]
[1731196452565,0.01,3124.7,3124.5,1.279499]
[1731196452891,0.01,3124.8,3124.6,0.058769]
[1731196453095,0.565,3124.9,3124.1,0.85346185]
[1731196453409,0.555,3124.9,3124.1,1.19846089]
[1731196453706,1.11,3124.9,3124.1,4.19846089]
[1731196454671,1.12,3124.9,3124.1,1.19846089]
[1731196455285,0.01,3124.8,3124.1,1.19846089]
[1731196455484,0.01,3124.6,3124.1,1.43338157]
[1731196455681,0.01,3124.3,3124.1,0.7947]
[1731196456407,0.7638,3124.2,3124.1,0.7947]
[1731196456709,0.7738,3124.2,3124.1,0.29714867]
[1731196457215,0.7738,3124.2,3123.8,0.65249505]
[1731196457370,0.7738,3124.2,3123.9,0.29721017]
[1731196457574,0.01,3124.1,3124.0,0.29721017]
[1731196459312,0.01,3124.0,3123.7,0.403761]
[1731196459475,0.01,3124.0,3123.8,0.29721002]
[1731196459680,0.01,3124.0,3123.9,0.29721002]
[1731196459907,0.565,3124.0,3123.9,0.29721002]
[1731196462002,1.12,3124.0,3123.9,0.29721002]
[1731196462219,2.14768317,3124.0,3123.9,0.29721002]
[1731196462416,2.69768317,3124.0,3123.9,0.29721002]
[1731196462615,0.0563,3122.5,3122.2,0.33057905]
[1731196462827,0.01,3122.5,3122.3,0.50310982]
[1731196463028,0.01,3122.4,3122.2,0.33057905]
[1731196463354,0.01,3122.8,3122.3,0.41882492]
[1731196463558,0.01,3124.1,3122.4,0.05888482]
[1731196463559,0.00607885,3123.2,3122.4,0.05888482]
[1731196463827,0.00607885,3123.4,3122.5,0.86301988]
[1731196463992,0.00607885,3123.2,3122.6,0.05886212]
[1731196464194,0.5824,3123.1,3122.7,0.6309911]
[1731196464623,0.5824,3123.1,3122.7,0.0588777]
[1731196464998,0.5824,3123.1,3122.9,3.0]
[1731196465214,0.56107885,3123.2,3122.7,0.44419496]
[1731196465553,0.555,3123.2,3122.9,3.0]
[1731196465836,0.56107885,3123.2,3122.7,0.44419496]
[1731196466175,0.56107885,3123.2,3122.9,3.0]
[1731196466333,1.11,3123.2,3122.7,0.44419496]
[1731196466496,1.11607885,3123.2,3122.8,0.05886307]
[1731196466697,1.11607885,3123.2,3122.9,3.0]
[1731196466891,1.11607885,3123.2,3123.0,0.05885818]
[1731196467091,1.11,3123.2,3123.0,0.05885818]
[1731196467623,1.11,3123.2,3122.9,0.44419496]
[1731196468538,1.11,3123.2,3122.5,0.86302]
[1731196468539,0.00607885,3122.8,3122.5,0.86302]
[1731196469112,0.00607885,3122.6,3121.6,0.33056568]
[1731196469309,0.00607885,3122.6,3121.9,0.64968344]
[1731196469621,0.58847885,3122.7,3122.0,0.05889221]
[1731196469807,0.58847885,3122.7,3122.1,0.86302]
[1731196470028,0.58847885,3122.7,3122.2,0.05889613]
[1731196470707,1.14347885,3122.7,3122.2,0.05889613]
[1731196471133,1.14347885,3122.7,3122.1,0.86302]
[1731196471317,1.14347885,3122.7,3122.2,0.0588952]
[1731196472648,1.69847885,3122.7,3122.2,0.0588952]
[1731196473445,1.11,3122.7,3122.2,0.0588952]
[1731196473710,1.11607885,3122.7,3122.4,3.0]
[1731196473915,1.11,3122.7,3122.4,3.0]
[1731196474150,1.11607885,3122.7,3122.2,0.0588952]
[1731196474446,1.11,3122.7,3122.4,3.0]
[1731196474644,1.11,3122.7,3122.5,0.29608812]
[1731196474852,1.665,3122.7,3122.6,0.29608812]
[1731196475648,1.67107885,3122.7,3122.6,0.29620901]
[1731196475913,1.67107885,3122.7,3122.4,0.05889377]
[1731196476113,1.665,3122.7,3122.5,0.29619647]
[1731196476327,1.665,3122.7,3122.6,0.29619647]
[1731196476719,1.67107885,3122.7,3122.6,0.29619647]
[1731196476922,2.22607885,3122.7,3122.6,0.29619647]
[1731196477220,2.22,3122.7,3122.6,0.29619647]
[1731196477644,2.22607885,3122.7,3122.6,0.29619647]
[1731196477851,2.22,3122.7,3122.6,3.29619647]
[1731196478063,2.22,3122.7,3122.6,0.29619647]
[1731196478422,0.47596996,3122.7,3122.6,0.2968875]
[1731196478946,0.47596996,3122.7,3122.6,0.35578013]
[1731196479148,1.03096996,3122.7,3122.6,0.35578013]
[1731196479353,1.03096996,3122.7,3122.6,0.29688901]
[1731196480432,0.03104608,3122.7,3122.6,0.29688901]
[1731196480756,0.03104608,3122.7,3122.5,3.6542364]
[1731196480934,0.03104608,3122.7,3122.5,0.71311782]
[1731196481134,0.03104608,3122.7,3122.5,3.0]
[1731196481460,0.58604608,3122.7,3122.5,3.0]
[1731196481661,0.58604608,3122.7,3121.7,0.33057531]
[1731196481662,0.00607885,3122.6,3122.3,3.0]
[1731196481954,0.00607885,3122.6,3122.0,0.128045]
[1731196482155,0.00607885,3122.6,3122.3,3.0]
[1731196482662,0.00607885,3122.4,3121.7,0.43972447]
[1731196483666,0.555,3122.4,3121.8,0.05889794]
[1731196483857,0.555,3122.4,3122.1,0.6493523]
[1731196484161,0.555,3122.4,3122.2,0.05890086]
[1731196484869,0.555,3122.4,3122.3,0.29845241]
[1731196485689,1.11,3122.4,3122.3,0.29845241]
[1731196485898,1.11,3122.4,3122.3,0.29847597]
[1731196486786,1.11,3122.4,3121.7,0.43972447]
[1731196486787,0.00607885,3122.0,3121.7,0.33057531]
[1731196487087,0.00607885,3122.0,3121.3,0.76266621]
[1731196487290,0.00607885,3122.0,3121.4,0.69716301]
[1731196487587,0.00607885,3122.2,3121.5,0.05894003]
[1731196487888,0.555,3122.0,3121.5,0.05894003]
[1731196488187,0.555,3122.0,3121.5,0.8048]
[1731196488391,0.555,3122.0,3121.5,0.86372456]
[1731196488890,0.555,3122.0,3121.5,0.8048]
[1731196489772,1.11,3122.0,3121.5,0.8048]
[1731196489977,1.11,3122.0,3121.9,0.64302218]
[1731196490285,1.11,3122.0,3121.3,0.91307144]
[1731196490688,1.11,3122.0,3121.4,0.05893136]
[1731196491096,1.11,3122.0,3121.7,0.6308607]
[1731196491289,1.11,3122.0,3121.8,0.0589328]
[1731196491480,1.11,3122.0,3121.7,0.6308607]
[1731196491679,1.11,3122.0,3121.4,0.05893372]
[1731196492058,1.665,3122.0,3121.6,0.64449436]
[1731196492894,0.66479498,3122.0,3121.6,0.64449436]
[1731196493097,0.66479498,3122.0,3121.8,3.0]
[1731196493298,0.66479498,3122.0,3121.8,0.05892854]
[1731196494204,1.21979498,3122.0,3121.6,0.64449436]
[1731196494720,1.21979498,3122.0,3121.7,0.05893279]
[1731196495191,1.21979498,3122.0,3121.6,0.64449436]
[1731196495518,1.21979498,3122.0,3121.8,3.0]
[1731196496280,1.77479498,3122.0,3121.8,0.05892626]
[1731196496883,1.77479498,3122.0,3121.7,0.8218]
[1731196497771,1.11,3122.4,3121.7,0.8218]
[1731196498009,1.11,3122.4,3122.1,3.0]
[1731196498182,1.11,3122.4,3121.7,0.8218]
[1731196498183,1.665,3122.4,3121.7,0.9322631]
[1731196498508,1.665,3122.4,3121.8,0.05890775]
[1731196499686,1.492,3122.4,3121.8,0.05890775]
[1731196500318,1.43,3122.4,3121.8,0.05890775]
[1731196500500,2.2474,3123.2,3121.9,21.63487875]
[1731196500690,2.2474,3123.2,3122.8,3.0]
[1731196500912,1.665,3123.2,3122.8,3.0]
[1731196501198,1.665,3123.2,3122.9,0.29907272]
[1731196501399,1.665,3123.2,3123.0,0.29907272]
[1731196501618,1.665,3123.2,3123.1,3.29907272]
[1731196501813,1.665,3123.2,3123.1,0.29907272]
[1731196502015,1.665,3123.2,3123.1,3.29907272]
[1731196502391,2.22,3123.2,3123.1,0.29907272]
[1731196503027,1.22024558,3123.2,3122.7,0.63237058]
[1731196503199,1.22024558,3123.2,3123.1,3.0]
[1731196503815,0.5824,3123.6,3122.7,0.63237058]
[1731196504001,0.5824,3123.6,3122.8,0.05884437]
[1731196504334,0.00607885,3123.7,3122.8,0.05884437]
[1731196504635,0.5824,3123.2,3122.7,0.63237058]
[1731196504842,0.00607885,3122.8,3121.6,0.8218]
[1731196505196,0.00607885,3122.8,3121.7,0.71356633]
[1731196505401,0.08005917,3123.1,3121.8,0.29883172]
[1731196505402,0.00607885,3122.3,3121.8,0.29883172]
[1731196505626,0.00607885,3122.3,3121.9,0.29883172]
[1731196505827,0.00607885,3122.3,3122.0,0.29883172]
[1731196506134,0.00607885,3122.6,3122.1,0.29883172]
[1731196506296,0.58847885,3122.8,3122.2,0.29883172]
[1731196506499,1.14347885,3122.8,3122.3,0.29883172]
[1731196506739,0.00607885,3122.4,3122.1,0.64090751]
[1731196506909,0.0861353,3122.7,3122.2,0.29885932]
[1731196507113,0.00607885,3122.7,3122.3,0.29885932]
[1731196507320,0.00607885,3122.7,3122.4,0.29885932]
[1731196507532,1.1374,3122.8,3122.5,0.29885932]
[1731196507698,1.1374,3122.8,3122.6,0.29885932]
[1731196508035,1.1374,3122.8,3122.7,0.29885932]
[1731196508336,1.1374,3122.8,3122.7,0.29884323]
[1731196508809,1.6924,3122.8,3122.7,0.29884323]
[1731196510758,1.86224788,3122.8,3122.7,0.29884323]
[1731196510902,2.41724788,3122.8,3122.7,0.29884323]
[1731196512205,2.2474,3122.8,3122.7,0.29884323]
[1731196513144,2.8024,3122.8,3122.7,0.29884323]
[1731196514717,0.00607885,3122.3,3121.9,0.63543062]
[1731196514936,0.08006276,3122.7,3122.0,0.29891732]
[1731196515165,0.555,3122.3,3122.1,0.29891732]
[1731196515476,0.555,3122.3,3122.2,0.29891732]
[1731196515619,1.1374,3122.3,3122.2,0.29891732]
[1731196517218,1.6924,3122.3,3122.2,0.29891732]
[1731196519348,2.2474,3122.3,3122.2,0.29891732]
[1731196521567,2.8024,3122.3,3122.2,0.29877772]
[1731196521763,3.08264,3122.3,3122.2,0.29877772]
[1731196522467,3.10264,3122.3,3122.2,0.29877772]
[1731196522706,3.65264,3122.3,3122.2,0.29877772]
[1731196523193,0.01,3122.2,3120.5,0.05895952]
[1731196523403,0.09010032,3122.2,3120.5,0.41474275]
[1731196523692,0.31403403,3122.1,3120.5,0.41474275]
[1731196523904,0.08010026,3122.0,3120.7,0.832]
[1731196524053,0.2836,3121.9,3120.7,0.832]
[1731196524259,0.08009133,3121.8,3120.8,0.41474275]
[1731196524874,0.08009133,3121.8,3120.9,0.05897667]
[1731196525663,0.63509133,3121.8,3121.0,3.0]
[1731196525992,0.63509133,3121.8,3120.8,0.41474275]
[1731196526157,0.63509133,3121.8,3120.3,0.832]
[1731196526357,0.64509133,3121.8,3120.8,0.6273892]
[1731196526563,0.63509133,3121.8,3120.8,0.6273892]
[1731196527484,0.64509133,3121.8,3120.8,0.6273892]
[1731196527687,1.20009133,3121.8,3120.8,0.6273892]
[1731196528571,1.19009133,3121.8,3120.8,0.6273892]
[1731196528778,1.19009133,3121.8,3120.8,1.04213195]
[1731196529381,1.19009133,3121.8,3120.8,0.6273892]
[1731196529870,1.74509133,3121.8,3120.8,0.6273892]
[1731196530870,1.75509133,3121.8,3120.8,0.6273892]
[1731196531071,0.20386913,3121.7,3120.8,0.6273892]
[1731196531381,0.0801043,3121.6,3120.8,0.6273892]
[1731196531762,0.2836,3121.5,3120.8,0.6273892]
[1731196531968,0.08010427,3121.4,3120.8,0.6273892]
[1731196532273,0.08010427,3121.4,3120.3,0.94546785]
[1731196533066,0.01,3120.3,3119.2,0.05530518]
[1731196533301,0.2936,3120.2,3119.2,0.05530518]
[1731196533493,0.36374597,3120.1,3119.2,0.05530518]
[1731196533671,0.2836,3120.0,3118.7,0.10944003]
[1731196533912,0.08014827,3119.9,3118.7,0.10944003]
[1731196534299,0.08014827,3119.9,3118.7,0.73461409]
[1731196534907,0.08014827,3119.9,3118.8,0.05911358]
[1731196535207,0.08014827,3119.9,3119.8,0.38277932]
[1731196535516,0.555,3120.1,3119.8,0.38277932]
[1731196535716,0.555,3120.1,3119.9,0.29797652]
[1731196535914,0.555,3120.1,3120.0,0.29797652]
[1731196536143,1.11,3120.1,3120.0,0.29797652]
[1731196536929,1.11,3120.1,3120.0,3.29797652]
[1731196537128,1.11,3120.1,3120.0,0.29797652]
[1731196537503,0.08012911,3121.4,3120.0,0.29797652]
[1731196537504,0.2836,3121.3,3120.4,3.0]
[1731196537737,0.2836,3121.3,3120.5,4.17959008]
[1731196537899,0.2836,3121.3,3120.6,0.29797652]
[1731196538100,0.8386,3121.3,3120.7,0.35697554]
[1731196538446,0.555,3121.3,3120.8,0.29750222]
[1731196538741,0.555,3121.3,3120.9,0.70541505]
[1731196538944,0.555,3121.3,3121.0,3.29750222]
[1731196539131,0.555,3121.3,3121.1,0.35647994]
[1731196539312,0.555,3121.3,3121.2,0.29750222]
[1731196540450,1.11,3121.3,3121.2,0.29750222]
[1731196541344,1.11,3121.3,3121.2,1.12010222]
[1731196541902,0.41130663,3121.3,3121.2,1.12010222]
[1731196542474,0.555,3121.6,3121.2,1.12010222]
[1731196542694,0.555,3121.6,3121.3,0.29750222]
[1731196542892,0.555,3121.6,3121.4,0.29750222]
[1731196543053,0.555,3121.6,3121.2,0.8226]
[1731196543054,0.555,3121.6,3121.5,0.29750222]
[1731196543251,0.08007902,3122.7,3121.5,0.29750222]
[1731196543252,1.75618724,3122.3,3121.5,12.27146825]
[1731196543549,0.2836,3123.4,3122.4,3.0]
[1731196543788,0.36365633,3123.4,3122.5,0.29750222]
[1731196543995,0.36365633,3123.4,3122.6,0.29750222]
[1731196544192,0.36365633,3123.4,3122.7,3.29750222]
[1731196544717,2.775,3122.8,3122.7,0.29750222]
[1731196544863,2.775,3122.8,3122.7,3.29750222]
[1731196545968,2.775,3122.8,3122.7,0.29750222]
[1731196546305,2.775,3122.8,3122.7,3.29750222]
[1731196546801,3.33,3122.8,3122.7,3.29750222]
[1731196547011,3.33,3122.8,3122.7,0.29750222]
[1731196547175,3.33,3122.8,3122.7,3.29750222]
[1731196547801,0.555,3123.7,3122.7,0.29750222]
[1731196548123,0.63503796,3123.7,3123.3,3.0]
[1731196548271,0.63503796,3123.7,3123.4,0.29750222]
[1731196548605,0.63503796,3123.7,3123.5,0.29750222]
[1731196548811,1.19003796,3123.7,3123.6,0.29750222]
[1731196550780,1.665,3123.7,3123.6,0.29750222]
[1731196553083,2.22,3123.7,3123.6,0.29750222]
[1731196553404,2.21759028,3123.7,3123.6,0.29750222]
[1731196554687,2.21759028,3123.7,3123.1,1.28186675]
[1731196555011,2.21759028,3123.7,3123.2,0.29612629]
[1731196555207,0.08003726,3123.6,3123.3,0.29612629]
[1731196555511,0.08003726,3123.6,3123.4,0.29612629]
[1731196555693,0.08003726,3123.6,3123.5,0.29612629]
[1731196556604,2.77259028,3123.7,3123.5,0.29612629]
[1731196556811,2.77259028,3123.7,3123.6,0.29612629]
[1731196556981,2.77259028,3123.7,3122.9,0.29612629]
[1731196557166,2.77259028,3123.7,3123.0,0.29612629]
[1731196557366,3.32759028,3123.7,3123.1,0.29612629]
[1731196557581,3.32759028,3123.7,3123.2,0.29612629]
[1731196557905,3.32759028,3123.7,3123.3,0.29612629]
[1731196558103,3.32759028,3123.7,3123.4,0.29595594]
[1731196558409,3.32759028,3123.7,3123.5,0.29595594]
[1731196558699,3.32759028,3123.7,3122.8,3.63228006]
[1731196558700,3.32759028,3123.7,3123.6,0.29595594]
[1731196559572,3.88259028,3123.7,3123.6,0.29595594]